[Event "Early-Titled-Tuesday-Blitz-February-13-2024"]
[Site "Chess.com"]
[Date "2024.02.13"]
[Round "11"]
[White "Suleyman_Chess06"]
[Black "Yan_Dyomin2010"]
[Result "1-0"]
[WhiteElo "2758"]
[BlackElo "2600"]
[TimeControl "180+1"]
[EndTime "10:10:40 PST"]
[Termination "Suleyman_Chess06 won by resignation"]

1. Nf3 {[%clk 0:03:00.9]} 1... Nf6 {[%clk 0:02:58.6]} 2. g3 {[%clk 0:03:01.4]}
2... g6 {[%clk 0:02:58]} 3. Bg2 {[%clk 0:03:01.8]} 3... Bg7 {[%clk 0:02:58.7]}
4. O-O {[%clk 0:03:02.5]} 4... O-O {[%clk 0:02:59.1]} 5. d4 {[%clk 0:03:03.2]}
5... d5 {[%clk 0:02:59.1]} 6. c4 {[%clk 0:03:04]} 6... c6 {[%clk 0:02:59.1]} 7.
cxd5 {[%clk 0:03:04.6]} 7... cxd5 {[%clk 0:03:00]} 8. Nc3 {[%clk 0:03:05.3]}
8... Ne4 {[%clk 0:03:00]} 9. Bf4 {[%clk 0:03:05]} 9... Nxc3 {[%clk 0:02:59.2]}
10. bxc3 {[%clk 0:03:05.9]} 10... Nc6 {[%clk 0:02:59.6]} 11. Qb3 {[%clk
0:03:06.4]} 11... Na5 {[%clk 0:02:58.4]} 12. Qb4 {[%clk 0:03:06.5]} 12... b6
{[%clk 0:02:58.2]} 13. Nd2 {[%clk 0:03:06.1]} 13... Ba6 {[%clk 0:02:50.8]} 14.
Rfe1 {[%clk 0:03:05.5]} 14... Rc8 {[%clk 0:02:46.2]} 15. e4 {[%clk 0:03:05.7]}
15... dxe4 {[%clk 0:02:44.4]} 16. Nxe4 {[%clk 0:03:06.4]} 16... Rc4 {[%clk
0:02:40.1]} 17. Qa3 {[%clk 0:03:02.6]} 17... Bb7 {[%clk 0:02:26.9]} 18. Bg5
{[%clk 0:02:59.1]} 18... Re8 {[%clk 0:02:19.5]} 19. Nd6 {[%clk 0:02:37.5]} 19...
Bxg2 {[%clk 0:02:18.5]} 20. Nxe8 {[%clk 0:02:35.7]} 20... Qxe8 {[%clk
0:01:57.9]} 21. Kxg2 {[%clk 0:02:31]} 21... e6 {[%clk 0:01:57.5]} 22. Kg1 {[%clk
0:02:19.4]} 22... Bf8 {[%clk 0:01:57.1]} 23. Qb2 {[%clk 0:02:19.3]} 23... Qc6
{[%clk 0:01:56]} 24. Rac1 {[%clk 0:02:18]} 24... Qd5 {[%clk 0:01:46.4]} 25. Qd2
{[%clk 0:02:15.2]} 25... Rc8 {[%clk 0:01:43.2]} 26. Bh6 {[%clk 0:02:03.7]} 26...
Nc4 {[%clk 0:01:42.6]} 27. Qf4 {[%clk 0:02:03.1]} 27... Bd6 {[%clk 0:01:39.4]}
28. Qf6 {[%clk 0:01:59.2]} 28... Bf8 {[%clk 0:01:37.2]} 29. Bxf8 {[%clk
0:01:59.3]} 29... Rxf8 {[%clk 0:01:37.9]} 30. Re2 {[%clk 0:01:53.5]} 30... a6
{[%clk 0:01:34]} 31. Rce1 {[%clk 0:01:52.9]} 31... b5 {[%clk 0:01:34.3]} 32. h4
{[%clk 0:01:52.5]} 32... h5 {[%clk 0:01:33.7]} 33. Kh2 {[%clk 0:01:38.3]} 33...
Nd6 {[%clk 0:01:06.5]} 34. Qe5 {[%clk 0:01:33.3]} 34... Qc6 {[%clk 0:00:54.2]}
35. Qf4 {[%clk 0:00:51.6]} 35... Nf5 {[%clk 0:00:38.2]} 36. Rc1 {[%clk
0:00:38.4]} 36... Rc8 {[%clk 0:00:37.5]} 37. Re5 {[%clk 0:00:36.5]} 37... Qc4
{[%clk 0:00:33.8]} 38. Ree1 {[%clk 0:00:27.4]} 38... Qxa2 {[%clk 0:00:28]} 39.
Kg1 {[%clk 0:00:28]} 39... Qc4 {[%clk 0:00:27.6]} 40. Ra1 {[%clk 0:00:26.2]}
40... Rc6 {[%clk 0:00:26.6]} 41. Qb8+ {[%clk 0:00:22.3]} 41... Kg7 {[%clk
0:00:26.3]} 42. Qe5+ {[%clk 0:00:21.9]} 42... Kh7 {[%clk 0:00:24.2]} 43. Qf6
{[%clk 0:00:19.3]} 43... Kg8 {[%clk 0:00:20.4]} 44. d5 {[%clk 0:00:19.2]} 44...
Qxc3 {[%clk 0:00:13.6]} 45. Qd8+ {[%clk 0:00:14.5]} 45... Kg7 {[%clk 0:00:13.3]}
46. dxc6 {[%clk 0:00:14.3]} 46... Qxc6 {[%clk 0:00:14]} 47. Qd2 {[%clk
0:00:12.5]} 47... Qf3 {[%clk 0:00:10.7]} 48. Qe2 {[%clk 0:00:10.9]} 48... Qb3
{[%clk 0:00:09.6]} 49. Rad1 {[%clk 0:00:10.8]} 49... a5 {[%clk 0:00:08.9]} 50.
Qe5+ {[%clk 0:00:11.1]} 50... Kh7 {[%clk 0:00:09]} 51. Rd8 {[%clk 0:00:10.8]}
51... Ng7 {[%clk 0:00:09.6]} 52. Rf8 {[%clk 0:00:10.6]} 52... Qb4 {[%clk
0:00:09.3]} 53. Rxf7 {[%clk 0:00:10.2]} 1-0

[Event "Early-Titled-Tuesday-Blitz-February-13-2024"]
[Site "Chess.com"]
[Date "2024.02.13"]
[Round "11"]
[White "chess123456s"]
[Black "Kopytkin"]
[Result "1-0"]
[WhiteElo "2594"]
[BlackElo "2378"]
[TimeControl "180+1"]
[EndTime "10:10:45 PST"]
[Termination "chess123456s won on time"]

1. d4 {[%clk 0:02:56.7]} 1... Nf6 {[%clk 0:02:57.2]} 2. Nc3 {[%clk 0:02:57.1]}
2... g6 {[%clk 0:02:54]} 3. e4 {[%clk 0:02:56.6]} 3... d5 {[%clk 0:02:54.6]} 4.
e5 {[%clk 0:02:52.2]} 4... Ne4 {[%clk 0:02:54.7]} 5. Nxe4 {[%clk 0:02:51.1]}
5... dxe4 {[%clk 0:02:54.5]} 6. Ne2 {[%clk 0:02:49.6]} 6... Bg7 {[%clk
0:02:51.8]} 7. Nc3 {[%clk 0:02:49.5]} 7... c5 {[%clk 0:02:52.1]} 8. Be3 {[%clk
0:02:46.6]} 8... cxd4 {[%clk 0:02:51.7]} 9. Qxd4 {[%clk 0:02:44.6]} 9... Qxd4
{[%clk 0:02:50.9]} 10. Bxd4 {[%clk 0:02:45.5]} 10... Nc6 {[%clk 0:02:37.7]} 11.
Bb5 {[%clk 0:02:44.5]} 11... O-O {[%clk 0:02:38.3]} 12. Bxc6 {[%clk 0:02:43.2]}
12... bxc6 {[%clk 0:02:39.2]} 13. Nxe4 {[%clk 0:02:40.5]} 13... Bf5 {[%clk
0:02:39.2]} 14. Nc5 {[%clk 0:02:32.7]} 14... Bxc2 {[%clk 0:02:39]} 15. Rc1
{[%clk 0:02:29.2]} 15... Bf5 {[%clk 0:02:38.8]} 16. O-O {[%clk 0:02:29.5]} 16...
Rfd8 {[%clk 0:02:38.1]} 17. Nb3 {[%clk 0:02:21.5]} 17... Be6 {[%clk 0:02:21.5]}
18. Bc3 {[%clk 0:02:16.8]} 18... Rab8 {[%clk 0:02:04.8]} 19. Nd4 {[%clk
0:02:03.1]} 19... Bd5 {[%clk 0:02:04.9]} 20. Rfe1 {[%clk 0:02:00.8]} 20... c5
{[%clk 0:01:55.9]} 21. Nf3 {[%clk 0:01:51.4]} 21... Bxf3 {[%clk 0:01:45.8]} 22.
gxf3 {[%clk 0:01:45.4]} 22... Rd5 {[%clk 0:01:46.4]} 23. f4 {[%clk 0:01:43.5]}
23... Rbd8 {[%clk 0:01:45.9]} 24. Re4 {[%clk 0:01:42.9]} 24... e6 {[%clk
0:01:33.9]} 25. Ra4 {[%clk 0:01:37]} 25... R8d7 {[%clk 0:01:33.3]} 26. Kg2
{[%clk 0:01:31.4]} 26... h5 {[%clk 0:01:33]} 27. Kf3 {[%clk 0:01:30.6]} 27...
Rd3+ {[%clk 0:01:30.8]} 28. Ke4 {[%clk 0:01:30.1]} 28... Rh3 {[%clk 0:01:31]}
29. Rh1 {[%clk 0:00:55.6]} 29... Bf8 {[%clk 0:01:30.9]} 30. Rc4 {[%clk
0:00:51.6]} 30... g5 {[%clk 0:01:19.5]} 31. fxg5 {[%clk 0:00:45.2]} 31... Rh4+
{[%clk 0:01:19]} 32. f4 {[%clk 0:00:44.7]} 32... Rh3 {[%clk 0:01:12.6]} 33. Be1
{[%clk 0:00:27.9]} 33... Kh7 {[%clk 0:01:11.4]} 34. Bf2 {[%clk 0:00:17.4]} 34...
Rd5 {[%clk 0:01:06.4]} 35. a3 {[%clk 0:00:15.5]} 35... Kg6 {[%clk 0:01:05.4]}
36. Bg3 {[%clk 0:00:11.6]} 36... h4 {[%clk 0:00:56.4]} 37. Bf2 {[%clk
0:00:09.7]} 37... Kh5 {[%clk 0:00:56.6]} 38. f5 {[%clk 0:00:07]} 38... Rb3
{[%clk 0:00:54.9]} 39. fxe6 {[%clk 0:00:05.4]} 39... fxe6 {[%clk 0:00:55]} 40.
Rhc1 {[%clk 0:00:04.8]} 40... Rxb2 {[%clk 0:00:51.3]} 41. Bxc5 {[%clk
0:00:02.9]} 41... Bg7 {[%clk 0:00:39.9]} 42. Bd6 {[%clk 0:00:01.9]} 42... Kg4
{[%clk 0:00:37.6]} 43. Ke3+ {[%clk 0:00:01.5]} 43... Kh3 {[%clk 0:00:37.3]} 44.
R1c3 {[%clk 0:00:01.2]} 44... Kxh2 {[%clk 0:00:29.6]} 45. Kf4 {[%clk 0:00:01.9]}
45... Rf2+ {[%clk 0:00:27.6]} 46. Kg4 {[%clk 0:00:02.3]} 46... Rg2+ {[%clk
0:00:24.3]} 47. Kxh4 {[%clk 0:00:02.3]} 47... Kg1 {[%clk 0:00:11.7]} 48. Rc1+
{[%clk 0:00:02.3]} 48... Kh2 {[%clk 0:00:11.1]} 49. R1c2 {[%clk 0:00:02.6]}
49... Bxe5 {[%clk 0:00:04.3]} 50. Rxg2+ {[%clk 0:00:02.5]} 50... Kxg2 {[%clk
0:00:05]} 51. Rg4+ {[%clk 0:00:03.2]} 51... Kf3 {[%clk 0:00:04.6]} 52. Bxe5
{[%clk 0:00:03.1]} 52... Rxe5 {[%clk 0:00:04.7]} 53. g6 {[%clk 0:00:03.8]} 1-0

[Event "Early-Titled-Tuesday-Blitz-February-13-2024"]
[Site "Chess.com"]
[Date "2024.02.13"]
[Round "11"]
[White "scarabee43"]
[Black "chessdjw"]
[Result "1-0"]
[WhiteElo "2874"]
[BlackElo "2745"]
[TimeControl "180+1"]
[EndTime "10:10:46 PST"]
[Termination "scarabee43 won by resignation"]

1. Nf3 {[%clk 0:03:00.9]} 1... d5 {[%clk 0:02:58.1]} 2. e3 {[%clk 0:03:00.9]}
2... Nf6 {[%clk 0:02:58]} 3. c4 {[%clk 0:03:00.3]} 3... e6 {[%clk 0:02:57.9]} 4.
Nc3 {[%clk 0:02:59.8]} 4... c5 {[%clk 0:02:54.6]} 5. cxd5 {[%clk 0:02:54.3]}
5... exd5 {[%clk 0:02:54.8]} 6. d4 {[%clk 0:02:54.8]} 6... Nc6 {[%clk
0:02:54.3]} 7. Be2 {[%clk 0:02:53.7]} 7... Bg4 {[%clk 0:02:41.3]} 8. O-O {[%clk
0:02:44.7]} 8... Be7 {[%clk 0:02:30.6]} 9. b3 {[%clk 0:02:36]} 9... O-O {[%clk
0:02:29.1]} 10. dxc5 {[%clk 0:02:36]} 10... Bxc5 {[%clk 0:02:27.7]} 11. Bb2
{[%clk 0:02:35.8]} 11... a6 {[%clk 0:02:23.4]} 12. Rc1 {[%clk 0:02:33.1]} 12...
Ba7 {[%clk 0:02:23.5]} 13. Rc2 {[%clk 0:02:27.5]} 13... Qe7 {[%clk 0:01:39.4]}
14. Rd2 {[%clk 0:02:22.1]} 14... Be6 {[%clk 0:01:38.7]} 15. Qa1 {[%clk
0:02:14.1]} 15... Rfd8 {[%clk 0:01:26.4]} 16. Rfd1 {[%clk 0:02:10.1]} 16... h6
{[%clk 0:01:04.5]} 17. h3 {[%clk 0:02:00.2]} 17... Rac8 {[%clk 0:00:59]} 18. Bf1
{[%clk 0:01:58]} 18... Qc7 {[%clk 0:00:37.8]} 19. Ne2 {[%clk 0:01:49.1]} 19...
Ne4 {[%clk 0:00:33]} 20. Rc2 {[%clk 0:01:48.7]} 20... f6 {[%clk 0:00:22.2]} 21.
Nfd4 {[%clk 0:01:33.3]} 21... Bf7 {[%clk 0:00:20.2]} 22. Rdc1 {[%clk 0:01:15.8]}
22... Bb8 {[%clk 0:00:18.4]} 23. g3 {[%clk 0:01:14.5]} 23... Qd7 {[%clk
0:00:16.4]} 24. Bg2 {[%clk 0:00:55.3]} 24... Bh5 {[%clk 0:00:13]} 25. Nf4 {[%clk
0:00:46.7]} 25... Bf7 {[%clk 0:00:12.5]} 26. Nd3 {[%clk 0:00:38.3]} 26... Ba7
{[%clk 0:00:11.3]} 27. Nxc6 {[%clk 0:00:34.7]} 27... bxc6 {[%clk 0:00:11.2]} 28.
Bd4 {[%clk 0:00:35.5]} 28... c5 {[%clk 0:00:10.3]} 29. Nxc5 {[%clk 0:00:35.2]}
29... Nxc5 {[%clk 0:00:10.2]} 30. Bxc5 {[%clk 0:00:35.7]} 30... Bxc5 {[%clk
0:00:09.7]} 31. Rxc5 {[%clk 0:00:36.2]} 31... Rxc5 {[%clk 0:00:10.4]} 32. Rxc5
{[%clk 0:00:36.8]} 32... d4 {[%clk 0:00:11.3]} 33. Qxd4 {[%clk 0:00:36.4]} 33...
Qxd4 {[%clk 0:00:11.7]} 34. exd4 {[%clk 0:00:36.5]} 34... Rxd4 {[%clk
0:00:12.6]} 35. Ra5 {[%clk 0:00:35.4]} 35... Rd1+ {[%clk 0:00:12.7]} 36. Bf1
{[%clk 0:00:34.9]} 36... Bg6 {[%clk 0:00:11.6]} 37. Kg2 {[%clk 0:00:25.5]} 37...
Be4+ {[%clk 0:00:11.7]} 38. f3 {[%clk 0:00:25.6]} 38... Rd2+ {[%clk 0:00:11.9]}
39. Kg1 {[%clk 0:00:26.2]} 39... Bxf3 {[%clk 0:00:12.4]} 40. Rxa6 {[%clk
0:00:26.6]} 40... h5 {[%clk 0:00:10.2]} 41. b4 {[%clk 0:00:24.2]} 41... Bd5
{[%clk 0:00:09.2]} 42. Rd6 {[%clk 0:00:22.8]} 42... Kf8 {[%clk 0:00:08.3]} 43.
a4 {[%clk 0:00:21.2]} 43... Ke7 {[%clk 0:00:08.3]} 44. Rb6 {[%clk 0:00:21.6]}
44... Ra2 {[%clk 0:00:05.7]} 45. a5 {[%clk 0:00:21.6]} 45... g5 {[%clk
0:00:05.3]} 46. Rb5 {[%clk 0:00:19.8]} 46... Be4 {[%clk 0:00:05]} 47. Rc5 {[%clk
0:00:19.9]} 47... Ra3 {[%clk 0:00:05]} 48. a6 {[%clk 0:00:18.4]} 48... Rxg3+
{[%clk 0:00:05.3]} 49. Kf2 {[%clk 0:00:18.9]} 49... Rf3+ {[%clk 0:00:05.9]} 50.
Ke1 {[%clk 0:00:19.2]} 50... Ra3 {[%clk 0:00:06.6]} 51. b5 {[%clk 0:00:19]}
51... g4 {[%clk 0:00:05.6]} 52. hxg4 {[%clk 0:00:18.7]} 52... hxg4 {[%clk
0:00:06.5]} 53. b6 {[%clk 0:00:18.7]} 53... Ra1+ {[%clk 0:00:06.3]} 54. Kf2
{[%clk 0:00:18.3]} 54... g3+ {[%clk 0:00:06.7]} 55. Kxg3 {[%clk 0:00:17.9]}
55... Rxf1 {[%clk 0:00:07.2]} 56. Rb5 {[%clk 0:00:14.2]} 56... Rf3+ {[%clk
0:00:07.1]} 57. Kg4 {[%clk 0:00:13.1]} 57... f5+ {[%clk 0:00:07.5]} 58. Kg5
{[%clk 0:00:13]} 58... Rg3+ {[%clk 0:00:07.9]} 59. Kf4 {[%clk 0:00:13.3]} 59...
Ra3 {[%clk 0:00:07.3]} 60. b7 {[%clk 0:00:13.1]} 60... Rxa6 {[%clk 0:00:05.5]}
61. b8=Q {[%clk 0:00:13.1]} 61... Re6 {[%clk 0:00:05.3]} 62. Re5 {[%clk
0:00:12.8]} 62... Kf6 {[%clk 0:00:06.2]} 63. Qf8+ {[%clk 0:00:12.2]} 63... Kg6
{[%clk 0:00:06.2]} 64. Rxe6+ {[%clk 0:00:12.6]} 1-0

[Event "Early-Titled-Tuesday-Blitz-February-13-2024"]
[Site "Chess.com"]
[Date "2024.02.13"]
[Round "11"]
[White "FARIZA2018"]
[Black "GaiozNigalidze"]
[Result "1-0"]
[WhiteElo "2547"]
[BlackElo "2666"]
[TimeControl "180+1"]
[EndTime "10:10:51 PST"]
[Termination "FARIZA2018 won on time"]

1. e4 {[%clk 0:03:00.9]} 1... c5 {[%clk 0:02:57.3]} 2. Nf3 {[%clk 0:03:00.9]}
2... d6 {[%clk 0:02:57.7]} 3. d4 {[%clk 0:03:01.2]} 3... cxd4 {[%clk 0:02:58.6]}
4. Nxd4 {[%clk 0:03:01.3]} 4... Nf6 {[%clk 0:02:59.2]} 5. Nc3 {[%clk 0:03:01.5]}
5... a6 {[%clk 0:02:59.8]} 6. f4 {[%clk 0:02:57.1]} 6... Nbd7 {[%clk 0:02:54.2]}
7. Bd3 {[%clk 0:02:55.1]} 7... e5 {[%clk 0:02:54.1]} 8. Nf3 {[%clk 0:02:55.1]}
8... Qc7 {[%clk 0:02:50.7]} 9. a4 {[%clk 0:02:53.6]} 9... b6 {[%clk 0:02:43.3]}
10. O-O {[%clk 0:02:51.2]} 10... Bb7 {[%clk 0:02:43.4]} 11. Kh1 {[%clk
0:02:48.9]} 11... Be7 {[%clk 0:02:41.5]} 12. Qe1 {[%clk 0:02:47.8]} 12... O-O
{[%clk 0:02:36.4]} 13. Be3 {[%clk 0:02:47]} 13... exf4 {[%clk 0:02:32.5]} 14.
Bxf4 {[%clk 0:02:47]} 14... Ne5 {[%clk 0:02:33.2]} 15. Rd1 {[%clk 0:02:38.4]}
15... Rfe8 {[%clk 0:02:32.2]} 16. Qf2 {[%clk 0:02:20.9]} 16... Rad8 {[%clk
0:02:23.5]} 17. h3 {[%clk 0:02:17.1]} 17... Bc6 {[%clk 0:01:37.6]} 18. Nd4
{[%clk 0:02:06.9]} 18... Nxd3 {[%clk 0:01:29.8]} 19. cxd3 {[%clk 0:02:03.1]}
19... Bd7 {[%clk 0:01:27.1]} 20. Bg5 {[%clk 0:01:55.3]} 20... Be6 {[%clk
0:01:25]} 21. Nf5 {[%clk 0:01:55.1]} 21... Bxf5 {[%clk 0:01:17.6]} 22. Qxf5
{[%clk 0:01:55]} 22... Qc5 {[%clk 0:01:09.7]} 23. Qf4 {[%clk 0:01:27.8]} 23...
Qe5 {[%clk 0:00:38]} 24. Qh4 {[%clk 0:00:50.3]} 24... h6 {[%clk 0:00:27.1]} 25.
Bxf6 {[%clk 0:00:50.1]} 25... Bxf6 {[%clk 0:00:28]} 26. Qf2 {[%clk 0:00:49]}
26... Qc5 {[%clk 0:00:13.7]} 27. d4 {[%clk 0:00:48]} 27... Qg5 {[%clk
0:00:13.7]} 28. Qf3 {[%clk 0:00:44.2]} 28... Rd7 {[%clk 0:00:12.7]} 29. Nd5
{[%clk 0:00:44.1]} 29... Bd8 {[%clk 0:00:13.5]} 30. Qd3 {[%clk 0:00:37.5]} 30...
a5 {[%clk 0:00:13.3]} 31. Rf5 {[%clk 0:00:37.6]} 31... Qg6 {[%clk 0:00:12]} 32.
Rdf1 {[%clk 0:00:37.1]} 32... Qe6 {[%clk 0:00:11.8]} 33. Nc3 {[%clk 0:00:26.1]}
33... Rc7 {[%clk 0:00:10.8]} 34. Qf3 {[%clk 0:00:24.3]} 34... Rd7 {[%clk
0:00:08.2]} 35. e5 {[%clk 0:00:24.1]} 35... Rf8 {[%clk 0:00:06.6]} 36. d5 {[%clk
0:00:23.8]} 36... Qg6 {[%clk 0:00:06.7]} 37. e6 {[%clk 0:00:23.9]} 37... Re7
{[%clk 0:00:06.8]} 38. Ne4 {[%clk 0:00:22]} 38... Bc7 {[%clk 0:00:06.7]} 39. Rf4
{[%clk 0:00:17.4]} 39... f5 {[%clk 0:00:03.8]} 40. Rxf5 {[%clk 0:00:15.8]} 40...
Rxf5 {[%clk 0:00:03]} 41. Qxf5 {[%clk 0:00:16.3]} 41... Qxf5 {[%clk 0:00:03.5]}
42. Rxf5 {[%clk 0:00:16.9]} 42... Bb8 {[%clk 0:00:03.6]} 43. g4 {[%clk
0:00:16.9]} 43... Rc7 {[%clk 0:00:03.9]} 44. Rf2 {[%clk 0:00:16.2]} 44... Rc1+
{[%clk 0:00:03.3]} 45. Kg2 {[%clk 0:00:16.3]} 45... Re1 {[%clk 0:00:04.2]} 46.
Nc3 {[%clk 0:00:15.3]} 46... Re5 {[%clk 0:00:02.8]} 47. Kg3 {[%clk 0:00:12.1]}
47... Bc7 {[%clk 0:00:02.3]} 48. Nb5 {[%clk 0:00:10.4]} 48... Bd8 {[%clk
0:00:02.3]} 49. Rd2 {[%clk 0:00:09.9]} 49... Be7 {[%clk 0:00:02]} 50. Nc3 {[%clk
0:00:08.6]} 50... Bg5 {[%clk 0:00:01.2]} 51. Re2 {[%clk 0:00:08.7]} 1-0

[Event "Early-Titled-Tuesday-Blitz-February-13-2024"]
[Site "Chess.com"]
[Date "2024.02.13"]
[Round "11"]
[White "masterofpuppets2"]
[Black "Semetey"]
[Result "1-0"]
[WhiteElo "2481"]
[BlackElo "2625"]
[TimeControl "180+1"]
[EndTime "10:10:56 PST"]
[Termination "masterofpuppets2 won by checkmate"]

1. d4 {[%clk 0:02:58.1]} 1... d5 {[%clk 0:02:47.1]} 2. c4 {[%clk 0:02:57.6]}
2... e6 {[%clk 0:02:48]} 3. Nf3 {[%clk 0:02:57.4]} 3... Nf6 {[%clk 0:02:47.9]}
4. g3 {[%clk 0:02:57.7]} 4... Bb4+ {[%clk 0:02:46.8]} 5. Nbd2 {[%clk 0:02:55.9]}
5... O-O {[%clk 0:02:45.8]} 6. Bg2 {[%clk 0:02:56.1]} 6... dxc4 {[%clk
0:02:46.2]} 7. O-O {[%clk 0:02:56]} 7... c5 {[%clk 0:02:46.5]} 8. Nxc4 {[%clk
0:02:39.5]} 8... Nc6 {[%clk 0:02:28.9]} 9. a3 {[%clk 0:02:36.5]} 9... Ba5 {[%clk
0:02:10.5]} 10. dxc5 {[%clk 0:02:35.3]} 10... Qe7 {[%clk 0:02:10.8]} 11. b4
{[%clk 0:02:19.2]} 11... Bc7 {[%clk 0:02:10.3]} 12. Bb2 {[%clk 0:02:19.7]} 12...
Rd8 {[%clk 0:02:02.4]} 13. Qc2 {[%clk 0:02:08.8]} 13... e5 {[%clk 0:02:02.4]}
14. Rfd1 {[%clk 0:02:07.3]} 14... Bg4 {[%clk 0:02:00]} 15. h3 {[%clk 0:02:03.3]}
15... Bh5 {[%clk 0:01:59.5]} 16. Rxd8+ {[%clk 0:01:47]} 16... Rxd8 {[%clk
0:01:52.3]} 17. Rd1 {[%clk 0:01:46.6]} 17... Rxd1+ {[%clk 0:01:41.1]} 18. Qxd1
{[%clk 0:01:46.1]} 18... e4 {[%clk 0:01:39.6]} 19. Nh4 {[%clk 0:01:32.8]} 19...
Qe6 {[%clk 0:01:31.2]} 20. Ne3 {[%clk 0:01:27.9]} 20... Ne5 {[%clk 0:01:02.2]}
21. Nhf5 {[%clk 0:01:00.1]} 21... h6 {[%clk 0:00:40.8]} 22. Nd6 {[%clk
0:00:59.5]} 22... b6 {[%clk 0:00:37.5]} 23. Bxe5 {[%clk 0:00:46.7]} 23... Qxe5
{[%clk 0:00:31.3]} 24. Ndc4 {[%clk 0:00:41.4]} 24... Qc3 {[%clk 0:00:26.5]} 25.
cxb6 {[%clk 0:00:37.2]} 25... axb6 {[%clk 0:00:24.5]} 26. Qa4 {[%clk 0:00:22.1]}
26... Bxe2 {[%clk 0:00:16.1]} 27. Qa8+ {[%clk 0:00:21.9]} 27... Kh7 {[%clk
0:00:15.9]} 28. Bxe4+ {[%clk 0:00:22.4]} 28... g6 {[%clk 0:00:15.4]} 29. Qc6
{[%clk 0:00:12.7]} 29... Bxg3 {[%clk 0:00:12.3]} 30. fxg3 {[%clk 0:00:08.1]}
30... Bxc4 {[%clk 0:00:12.4]} 31. Nxc4 {[%clk 0:00:06.7]} 31... Qxg3+ {[%clk
0:00:11.4]} 32. Bg2 {[%clk 0:00:07]} 32... Nh5 {[%clk 0:00:07]} 33. Qf3 {[%clk
0:00:05.1]} 33... Qe1+ {[%clk 0:00:07.1]} 34. Kh2 {[%clk 0:00:05.7]} 34... Nf4
{[%clk 0:00:06.6]} 35. Qxf4 {[%clk 0:00:04.8]} 35... Qe6 {[%clk 0:00:05.6]} 36.
Ne5 {[%clk 0:00:04.7]} 36... f6 {[%clk 0:00:05.5]} 37. Nf3 {[%clk 0:00:04.7]}
37... g5 {[%clk 0:00:05.8]} 38. Qd4 {[%clk 0:00:04]} 38... h5 {[%clk 0:00:05.8]}
39. Qd3+ {[%clk 0:00:04.3]} 39... Kh6 {[%clk 0:00:06]} 40. Kg1 {[%clk 0:00:04]}
40... g4 {[%clk 0:00:05]} 41. Nd4 {[%clk 0:00:04.3]} 41... Qe1+ {[%clk
0:00:04.3]} 42. Kh2 {[%clk 0:00:03.9]} 42... Qe5+ {[%clk 0:00:05]} 43. Kg1
{[%clk 0:00:03.2]} 43... Qe1+ {[%clk 0:00:05.1]} 44. Bf1 {[%clk 0:00:03.8]}
44... g3 {[%clk 0:00:05.3]} 45. Qe2 {[%clk 0:00:02.4]} 45... Qc3 {[%clk
0:00:04.9]} 46. Nf3 {[%clk 0:00:02.2]} 46... h4 {[%clk 0:00:04.9]} 47. Kg2
{[%clk 0:00:02.5]} 47... Kg6 {[%clk 0:00:04.7]} 48. Qe4+ {[%clk 0:00:02.4]}
48... Kg7 {[%clk 0:00:04.7]} 49. Qb7+ {[%clk 0:00:02.1]} 49... Kg6 {[%clk
0:00:04.4]} 50. Qe4+ {[%clk 0:00:02.3]} 50... Kg7 {[%clk 0:00:04.7]} 51. Qg4+
{[%clk 0:00:02.5]} 51... Kf8 {[%clk 0:00:05.5]} 52. Be2 {[%clk 0:00:02.8]} 52...
Qc1 {[%clk 0:00:04.5]} 53. Qe4 {[%clk 0:00:02.5]} 53... Qb2 {[%clk 0:00:04.9]}
54. Qa8+ {[%clk 0:00:02.5]} 54... Kf7 {[%clk 0:00:04.7]} 55. Qe4 {[%clk
0:00:03.4]} 55... Qxa3 {[%clk 0:00:04]} 56. Nxh4 {[%clk 0:00:03.5]} 56... Qb3
{[%clk 0:00:03.5]} 57. Qb7+ {[%clk 0:00:03.3]} 57... Kf8 {[%clk 0:00:03]} 58.
Nf5 {[%clk 0:00:02.3]} 58... Kg8 {[%clk 0:00:03.7]} 59. Qg7# {[%clk 0:00:02.1]}
1-0